fUST/lending_fUST_20260128
["ID","MTS","AMOUNT","RATE_DAILY","PERIOD"]
[403854050,1769602245945,-1000.0,0.00029559,30]
[403854052,1769602245955,-1000.0,0.00029559,30]
[403854054,1769602245964,-1000.0,0.00029559,30]
[403854056,1769602245975,-550.0,0.00029589,5]
[403854058,1769602245985,-550.0,0.00029589,5]
[403854060,1769602245994,-276.43,0.000296,60]
[403854062,1769602246004,-218.27018368,0.00029671,30]
[403854064,1769602246013,-172.98,0.000297,2]
[403854066,1769602246022,-256.36,0.000297,2]
[403854068,1769602246032,-496.23,0.000297,2]
[403854070,1769602246042,-4479.20149839,0.0002973,7]
[403854072,1769602246051,-594.93201047,0.00029762,7]
[403854074,1769602246060,-801.13,0.000298,2]
[403854076,1769602246070,-4683.12,0.000298,14]
[403854078,1769602246080,-160.0,0.00029808,36]
[403854080,1769602246095,-218.27018368,0.00029808,30]
[403854082,1769602246110,-151.0,0.00029839,7]
[403854084,1769602246120,-7506.87052314,0.00029905,2]
[403854086,1769602246130,-413.56840495,0.0003,10]
[403854088,1769602246140,-23512.56494921,0.0003,10]
[403854090,1769602246150,-8398.55217967,0.0003,10]
[403854092,1769602246160,-17960.7462088,0.0003,2]
[403854094,1769602246171,-35783.66965541,0.0003,2]
[403854096,1769602246181,-1608.37731775,0.0003,10]
[403854099,1769602246192,-570.7986551,0.0003,30]
[403854101,1769602246205,-165.46,0.0003,5]
[403854103,1769602246215,-269.91832974,0.0003,2]
[403854105,1769602246225,-14031.37921284,0.0003,7]
[403854107,1769602246234,-258.62116561,0.0003,10]
[403854109,1769602246244,-11841.96810216,0.0003,12]
[403854111,1769602246254,-154.88071392,0.0003,3]
[403854113,1769602246264,-187.913251,0.0003,7]
[403854115,1769602246273,-187.913251,0.0003,7]
[403854117,1769602246283,-187.913251,0.0003,7]
[403854119,1769602246293,-187.913251,0.0003,7]
[403854120,1769602246303,-151.0,0.0003,7]
[403854122,1769602246313,-200.0,0.0003,7]
[403854124,1769602246323,-200.0,0.0003,7]
[403854126,1769602246332,-200.0,0.0003,7]
[403854128,1769602246341,-200.0,0.0003,7]
[403854130,1769602246351,-200.0,0.0003,7]
[403854132,1769602246360,-200.0,0.0003,7]
[403854134,1769602246370,-1041.66666667,0.0003,10]
[403854136,1769602246380,-250.0,0.0003,2]
[403854138,1769602246389,-1109.9,0.0003,30]
[403854140,1769602246399,-1500.0,0.0003,2]
[403854142,1769602246410,-1021.0,0.0003,7]
[403854144,1769602246419,-178.5494496,0.00030059,14]
[403854146,1769602246429,-1109.9,0.0003006,30]
[403854148,1769602246439,-150.32,0.000301,2]
[403854150,1769602246448,-801.13,0.000301,2]
[403854152,1769602246458,-152.09,0.000301,2]
[403854154,1769602246468,-158.63,0.000301,2]
[403854156,1769602246478,-160.23,0.000301,2]
[403854158,1769602246487,-174.02,0.000301,2]
[403854160,1769602246497,-172.98,0.000301,2]
[403854162,1769602246506,-256.36,0.000301,2]
[403854164,1769602246515,-250.0,0.000301,2]
[403854165,1769602246525,-1109.9,0.0003012,30]
[403854168,1769602246535,-150.0,0.0003013,2]
[403854170,1769602246544,-1200.0,0.00030136,30]
[403854172,1769602246553,-1200.0,0.00030136,30]
[403854174,1769602246562,-1200.0,0.00030136,30]
[403854176,1769602246571,-1200.0,0.00030136,30]
[403854178,1769602246581,-1200.0,0.00030136,30]
[403854180,1769602246591,-1200.0,0.00030136,30]
[403854182,1769602246601,-1200.0,0.00030136,30]
[403854184,1769602246611,-1214.18918286,0.00030136,30]
[403854186,1769602246621,-181.14121172,0.00030137,2]
[403854188,1769602246631,-151.0,0.00030137,31]
[403854190,1769602246640,-151.0,0.00030137,31]
[403854192,1769602246650,-151.0,0.00030137,31]
[403854194,1769602246660,-151.0,0.00030137,31]
[403854196,1769602246669,-151.0,0.00030137,31]
[403854198,1769602246681,-151.0,0.00030137,31]
[403854200,1769602246690,-151.0,0.00030137,31]
[403854202,1769602246700,-151.0,0.00030137,31]
[403854204,1769602246711,-151.0,0.00030137,31]
[403854206,1769602246722,-151.0,0.00030137,31]
[403854208,1769602246731,-151.0,0.00030137,31]
[403854210,1769602246740,-151.0,0.00030137,31]
[403854212,1769602246750,-151.0,0.00030137,31]
[403854214,1769602246759,-151.0,0.00030137,31]
[403854216,1769602246769,-151.0,0.00030137,31]
[403854218,1769602246779,-231.779754,0.00030137,31]
[403854220,1769602246789,-650.0,0.00030137,5]
[403854222,1769602246799,-650.0,0.00030137,5]
[403854224,1769602246809,-150.0,0.00030137,120]
[403854226,1769602246819,-169.64472874,0.00030138,120]
[403854228,1769602246829,-1000.0,0.0003014,2]
[403854230,1769602246838,-500.0,0.00030179,120]
[403854232,1769602246848,-1109.9,0.0003018,30]
[403854234,1769602246857,-250.0,0.000302,2]
[403854236,1769602246868,-167.0,0.00030205,14]
[403854238,1769602246878,-515.0,0.00030205,14]
[403854240,1769602246888,-1109.9,0.0003024,30]
[403854242,1769602246897,-242.68625215,0.00030274,120]
[403854244,1769602246907,-1000.0,0.000303,2]
[403854246,1769602246918,-289.19,0.000303,7]
[403854248,1769602246928,-439.562924,0.000303,2]
[403854250,1769602246937,-1109.9,0.000303,30]
[403854252,1769602246948,-5000.0,0.00030346,26]
[403854254,1769602246958,-5000.0,0.00030346,26]
[403854256,1769602246970,-1109.9,0.0003036,30]
[403854258,1769602246980,-1109.9,0.0003042,30]
[403854260,1769602246990,-158.58553219,0.00030478,120]
[403854262,1769602247000,-1109.9,0.0003048,30]
[403854264,1769602247009,-586.34,0.000305,7]
[403854266,1769602247019,-1369.0,0.00030549,2]
[403854268,1769602247028,-630.0,0.00030549,2]
[403854270,1769602247037,-2150.0,0.00030549,2]
[403854272,1769602247047,-160.0,0.00030613,5]
[403854274,1769602247057,-750.0,0.00030685,5]
[403854276,1769602247067,-750.0,0.00030685,5]
[403854278,1769602247077,-11040.2,0.000307,2]
[403854280,1769602247086,-1906.799103,0.000307,31]
[403854282,1769602247098,-1906.799103,0.000307,31]
[403854284,1769602247107,-1906.799103,0.000307,31]
[403854286,1769602247117,-1906.799101,0.000307,31]
[403854287,1769602247127,-1523.0710035,0.00030737,2]
[403854290,1769602247139,-500.0,0.00030869,120]
[403854292,1769602247150,-10000.0,0.0003087,7]
[403854293,1769602247159,-306.4644152,0.0003099,2]
[403854310,1769602247319,-534.36761402,0.00031,2]
[403854312,1769602247329,-350.0,0.00031,60]
[403854314,1769602247339,-584.62310671,0.00031,30]
[403854316,1769602247349,-1000.0,0.00031,120]
[403854318,1769602247358,-151.0,0.00031,31]
[403854320,1769602247368,-181.945001,0.00031,31]
[403854322,1769602247378,-1021.0,0.00031,7]
[403854324,1769602247388,-3705.345469,0.00031014,30]
[403854326,1769602247398,-444.37775,0.000311,120]
[403854328,1769602247407,-200.0,0.000311,120]
[403854330,1769602247417,-200.0,0.000311,120]
[403854332,1769602247427,-2000.0,0.00031111,7]
[403854334,1769602247436,-500.0,0.00031119,120]
[403854336,1769602247447,-12346.20687032,0.0003112,2]
[403854338,1769602247456,-151.0,0.0003112,31]
[403854339,1769602247466,-1125.13437148,0.00031172,2]
[403854340,1769602247476,-603.9975254,0.00031217,30]
[403854341,1769602247486,-603.9975254,0.00031217,30]
[403854342,1769602247496,-603.9975254,0.00031217,30]
[403854343,1769602247505,-603.9975254,0.00031217,30]
[403854344,1769602247516,-603.9975254,0.00031217,30]
[403854345,1769602247526,-850.0,0.00031233,5]
[403854346,1769602247536,-850.0,0.00031233,5]
[403854347,1769602247546,-23673.81,0.00031282,30]
[403854348,1769602247555,-4683.12,0.000313,14]
[403854349,1769602247565,-1588.005201,0.00031364,30]
[403854350,1769602247574,-339.8430769,0.00031508,2]
[403854351,1769602247583,-500.0,0.0003155,120]
[403854352,1769602247593,-193.84758249,0.0003155,120]
[403854353,1769602247602,-5000.0,0.00031576,34]
[403854354,1769602247611,-5000.0,0.00031576,32]
[403854355,1769602247620,-5000.0,0.00031576,31]
[403854356,1769602247633,-5000.0,0.00031576,32]
[403854357,1769602247643,-9392.0431636,0.00031711,2]
[403854358,1769602247652,-950.0,0.00031781,5]
[403854359,1769602247663,-436.57189686,0.00031781,5]
[403854360,1769602247673,-635.64,0.000318,20]
[403854361,1769602247682,-10000.0,0.0003187,7]
[403854362,1769602247691,-44002.61825828,0.000319,2]
[403854363,1769602247703,-378.6421674,0.00031945,30]
[403854364,1769602247712,-649.23715263,0.00031945,120]
[403854365,1769602247721,-200.91964487,0.00032,2]
[403854366,1769602247731,-842.87158248,0.00032,30]
[403854367,1769602247740,-89553.75825917,0.00032,120]
[403854368,1769602247750,-1000.0,0.00032,120]
[403854369,1769602247760,-1041.66666667,0.00032,120]
[403854370,1769602247770,-500.0,0.00032,120]
[403854371,1769602247780,-160.0,0.00032,120]
[403854372,1769602247790,-187.913251,0.00032,31]
[403854373,1769602247800,-187.913251,0.00032,31]
[403854374,1769602247809,-187.913251,0.00032,31]
[403854375,1769602247819,-187.913251,0.00032,31]
[403854376,1769602247829,-1021.0,0.00032,7]
[403854377,1769602247839,-151.0,0.00032031,31]
[403854378,1769602247848,-185.4228782,0.00032039,30]
[403854379,1769602247858,-185.4228781,0.00032039,30]
[403854380,1769602247868,-529.2128825,0.00032039,30]
[403854381,1769602247877,-185.1728092,0.00032039,30]
[403854382,1769602247887,-153.0,0.00032039,30]
[403854383,1769602247896,-153.0,0.00032039,30]
[403854384,1769602247906,-307.3818572,0.00032096,30]
[403854385,1769602247915,-289.19,0.000321,7]
[403854386,1769602247925,-160.0,0.00032103,6]
[403854387,1769602247934,-500.0,0.0003216,2]
[403854388,1769602247943,-586.34,0.000322,7]
[403854389,1769602247954,-509.0,0.00032219,14]
[403854390,1769602247963,-174.76,0.000323,2]
[403854391,1769602247973,-11040.2,0.000323,2]
[403854392,1769602247982,-160.59,0.00032328,15]
[403854393,1769602247991,-1339.75,0.00032328,15]
[403854394,1769602248001,-500.0,0.00032328,7]
[403854395,1769602248010,-432.43553538,0.00032328,7]
[403854396,1769602248020,-1050.0,0.00032329,5]
[403854397,1769602248029,-160.59,0.00032428,15]
[403854398,1769602248038,-1339.75,0.00032428,15]
[403854399,1769602248048,-7506.87052314,0.00032434,2]
[403854400,1769602248058,-1000.0,0.00032515,30]
[403854401,1769602248067,-1000.0,0.00032515,30]
[403854402,1769602248077,-1000.0,0.00032515,30]
[403854403,1769602248086,-715.0,0.00032515,30]
[403854404,1769602248096,-160.59759861,0.00032528,15]
[403854405,1769602248106,-1339.75,0.00032528,15]
[403854406,1769602248116,-26304.23,0.00032565,30]
[403854407,1769602248127,-2307.62,0.00032602,120]
[403854408,1769602248136,-1339.75,0.00032628,15]
[403854409,1769602248145,-1339.75,0.00032728,15]
[403854410,1769602248155,-444.37775,0.000328,120]
[403854411,1769602248165,-235.92013,0.000328,120]
[403854412,1769602248175,-1339.75,0.00032828,15]
[403854414,1769602248185,-153.0,0.00032861,30]
[403854416,1769602248194,-153.0,0.00032861,30]
[403854418,1769602248204,-436.64430623,0.00032876,2]
[403854420,1769602248214,-496.89316753,0.00032876,2]
[403854422,1769602248223,-523.72434967,0.00032876,2]
[403854424,1769602248233,-500.0,0.00032876,2]
[403854426,1769602248242,-500.0,0.00032876,2]
[403854428,1769602248252,-500.0,0.00032876,2]
[403854429,1769602248261,-500.0,0.00032876,2]
[403854432,1769602248270,-171.18116791,0.00032876,2]
[403854433,1769602248280,-500.0,0.00032876,2]
[403854436,1769602248290,-219.43085206,0.00032876,2]
[403854438,1769602248300,-631.45321653,0.00032876,2]
[403854440,1769602248309,-853.787,0.00032877,31]
[403854442,1769602248320,-853.787,0.00032877,31]
[403854444,1769602248329,-853.787,0.00032877,31]
[403854446,1769602248339,-853.787,0.00032877,31]
[403854448,1769602248348,-853.787,0.00032877,31]
[403854450,1769602248358,-853.787,0.00032877,31]
[403854452,1769602248367,-853.787,0.00032877,31]
[403854454,1769602248377,-853.787,0.00032877,31]
[403854456,1769602248388,-853.787,0.00032877,31]
[403854458,1769602248398,-853.787,0.00032877,31]
[403854460,1769602248409,-853.787,0.00032877,31]
[403854462,1769602248418,-853.787,0.00032877,31]
[403854464,1769602248428,-853.787,0.00032877,31]
[403854465,1769602248438,-853.787,0.00032877,31]
[403854466,1769602248450,-853.787,0.00032877,31]
[403854467,1769602248462,-853.787,0.00032877,31]
[403854468,1769602248472,-853.787,0.00032877,31]
[403854469,1769602248482,-853.787,0.00032877,31]
[403854470,1769602248492,-853.787,0.00032877,31]
[403854471,1769602248502,-853.787001,0.00032877,31]
[403854472,1769602248513,-17892.55,0.00032877,10]
[403854473,1769602248524,-14910.46,0.00032877,10]
[403854474,1769602248534,-200.0,0.00032877,5]
[403854475,1769602248544,-1150.0,0.00032877,5]
[403854476,1769602248554,-4683.12,0.000329,30]
[403854477,1769602248565,-1339.75,0.00032928,60]
[403854478,1769602248576,-378.7157442,0.00032932,30]
[403854479,1769602248586,-5395.51320948,0.00033,120]
[403854480,1769602248596,-1763.07100206,0.00033,4]
[403854481,1769602248605,-1146.88116204,0.00033,120]
[403854482,1769602248614,-2633.02982077,0.00033,14]
[403854483,1769602248624,-5038.5099898,0.00033,30]
[403854484,1769602248633,-1000.0,0.00033,120]
[403854485,1769602248643,-1041.66666667,0.00033,120]
[403854486,1769602248652,-1000.0,0.00033,120]
[403854487,1769602248661,-1041.66666667,0.00033,120]
[403854488,1769602248671,-1021.0,0.00033,7]
[403854489,1769602248680,-1041.66666667,0.00033,10]
[403854490,1769602248689,-1339.75,0.00033028,60]
[403854491,1769602248699,-1339.75,0.00033128,60]
[403854492,1769602248709,-153.0,0.00033133,30]
[403854493,1769602248718,-300.02084456,0.00033151,5]
[403854494,1769602248728,-1197.46443822,0.00033172,120]
[403854495,1769602248737,-999.759324,0.000332,117]
[403854496,1769602248747,-999.75932398,0.000332,117]
[403854497,1769602248756,-999.75932398,0.000332,117]
[403854498,1769602248765,-999.75932398,0.000332,117]
[403854499,1769602248774,-603.9975254,0.00033205,30]
[403854500,1769602248783,-185.4228781,0.00033205,30]
[403854501,1769602248792,-185.4228781,0.00033205,30]
[403854502,1769602248801,-603.9975254,0.00033205,30]
[403854503,1769602248811,-185.4228781,0.00033205,30]
[403854504,1769602248819,-603.9975254,0.00033205,30]
[403854505,1769602248828,-185.4228781,0.00033205,30]
[403854506,1769602248837,-603.9975254,0.00033205,30]
[403854507,1769602248846,-185.4228781,0.00033205,30]
[403854508,1769602248855,-603.9975254,0.00033205,30]
[403854509,1769602248864,-1339.75,0.00033228,60]
[403854510,1769602248873,-342.14233227,0.00033261,30]
[403854511,1769602248882,-1307.58058017,0.000333,120]
[403854512,1769602248891,-1000.0,0.000333,2]
[403854513,1769602248901,-174.76,0.000333,2]
[403854514,1769602248910,-1339.75,0.00033328,60]
[403854515,1769602248921,-243.39672139,0.00033333,3]
[403854516,1769602248931,-2000.0,0.00033333,7]
[403854517,1769602248941,-1250.0,0.00033425,5]
[403854518,1769602248952,-1339.75,0.00033428,60]
[403854519,1769602248962,-213.0,0.0003349,35]
[403854520,1769602248971,-586.34,0.000335,7]
[403854521,1769602248980,-1339.75,0.00033528,60]
[403854522,1769602248990,-1369.0,0.00033549,2]
[403854523,1769602248999,-630.0,0.00033549,2]
[403854524,1769602249011,-2150.0,0.00033549,2]
[403854526,1769602249021,-160.0,0.00033592,7]
[403854528,1769602249030,-172.01,0.000336,7]
[403854530,1769602249039,-289.19,0.000336,7]
[403854532,1769602249048,-200.0,0.00033606,120]
[403854534,1769602249057,-1339.75,0.00033628,60]
[403854536,1769602249066,-2307.62,0.00033698,120]
[403854538,1769602249075,-1339.75,0.00033728,60]
[403854540,1769602249085,-194.6865296,0.00033781,30]
[403854542,1769602249098,-194.6865296,0.00033781,30]
[403854544,1769602249107,-1339.75,0.00033828,60]
[403854546,1769602249117,-200.0,0.00033861,120]
[403854548,1769602249126,-7668.45248829,0.0003387,7]
[403854557,1769602249258,-1181.71212399,0.0003387,7]
[403854559,1769602249270,-968.75395028,0.0003387,7]
[403854562,1769602249285,-181.08143744,0.0003387,7]
[403854564,1769602249295,-799.25407265,0.00033871,60]
[403854566,1769602249306,-1200.63592735,0.00033871,60]
[403854568,1769602249315,-155.30741376,0.00033871,60]
[403854570,1769602249324,-6358.46046705,0.0003388,30]
[403854576,1769602249372,-1902.08555558,0.00022638,30]
[403854578,1769602249383,-728.33444442,0.00022638,30]
[403854580,1769602249392,-5260.85,0.0002402,30]
[403854582,1769602249402,-7891.27,0.00025402,30]
[403854584,1769602249412,-10521.69,0.00026783,30]
[403854586,1769602249423,-151.0,0.00028492,5]
[403854588,1769602249432,-151.0,0.00028492,5]
[403854590,1769602249441,-20289.65555559,0.0003388,30]
[403854595,1769602249480,-3066.6995767,0.0003388,30]
[403854603,1769602249538,-12425.38,0.0002361,10]
[403854605,1769602249548,-369.8454805,0.00027164,2]
[403854607,1769602249560,-13152.12,0.00028165,30]
[403854609,1769602249570,-256.09190763,0.00028492,5]
[403854611,1769602249578,-5052.46876847,0.00029547,30]
[403854613,1769602249590,-10730.07123153,0.00029547,30]
[403854615,1769602249599,-18412.96,0.00030928,30]
[403854617,1769602249608,-20565.5330235,0.0003231,30]
[403854620,1769602249621,-477.8569765,0.0003231,30]
[403854622,1769602249629,-2866.97003735,0.0003388,30]
[403855868,1769603108091,276.7,0.00034918,120]
[403855877,1769603282056,150.0,0.00034918,120]
[403855878,1769603282450,150.0,0.00034918,120]
[403855897,1769603404583,159.53,0.0001,2]
[403855898,1769603405112,159.53,0.000104,2]
[403855899,1769603405785,159.53,0.000108,2]
[403855913,1769603425215,500.0,0.00026823,120]
[403855914,1769603425460,500.0,0.00030063,120]
[403855956,1769603432296,-159.53,0.000112,2]
[403855957,1769603432306,-159.53,0.000116,2]
[403855958,1769603432315,-159.53,0.000121,2]
[403855959,1769603432325,-159.53,0.000125,2]
[403855960,1769603432334,-159.53,0.000129,2]
[403855961,1769603432343,-523.78631543,0.00013273,2]
[403855962,1769603432352,-159.53,0.000133,2]
[403855963,1769603432362,-233.86721579,0.00013379,2]
[403855964,1769603432371,-95396.28075532,0.00013491,2]
[403855965,1769603432382,-533.07216018,0.00013491,2]
[403855966,1769603432393,-914.98005166,0.00013491,2]
[403855967,1769603432404,-311.559,0.00013491,2]
[403855968,1769603432416,-12188.99085826,0.00013491,2]
[403855969,1769603432430,-825.0,0.00013491,2]
[403855970,1769603434992,200.0,0.000294,120]
[403855980,1769603438347,-1888.3931287,0.00013491,2]
[403855981,1769603438403,-6382.20423893,0.00013491,2]
[403855982,1769603438415,-3259.11737104,0.00013491,2]
[403855983,1769603438429,-20558.80273973,0.00013491,2]
[403855984,1769603438440,-6841.03147185,0.00013491,2]
[403855985,1769603438460,-9936.5295482,0.00013491,2]
[403855986,1769603438472,-3867.14725457,0.00013491,2]
[403855987,1769603438483,-861.4296,0.00013491,2]
[403855988,1769603438517,-42460.57249409,0.00013491,2]
[403855989,1769603438526,-1174.00539545,0.00013599,2]
[403855990,1769603438535,-500.0,0.00013699,2]
[403855991,1769603438544,-159.53,0.000137,2]
[403855992,1769603438553,-300.0,0.0001376,2]
[403855993,1769603438563,-300.0,0.0001376,2]
[403855994,1769603438572,-300.0,0.0001376,2]
[403855995,1769603438582,-300.0,0.0001376,2]
[403855996,1769603438591,-300.0,0.0001376,2]
[403855997,1769603438601,-300.0,0.0001376,2]
[403855998,1769603438611,-300.0,0.0001376,2]
[403855999,1769603438620,-300.0,0.0001376,2]
[403856000,1769603438630,-300.0,0.0001376,2]
[403856001,1769603438639,-300.0,0.0001376,2]
[403856002,1769603438648,-300.0,0.0001376,2]
[403856003,1769603438658,-300.0,0.0001376,2]
[403856004,1769603438667,-300.0,0.0001376,2]
[403856005,1769603438676,-300.0,0.0001376,2]
[403856006,1769603438685,-300.0,0.0001376,2]
[403856007,1769603438695,-600.0,0.0001376,2]
[403856008,1769603438705,-159.53,0.000141,2]
[403856009,1769603438714,-341.02216059,0.00014247,2]
[403856010,1769603438723,-159.53,0.000145,2]
[403856011,1769603438732,-159.53,0.000149,2]
[403856012,1769603438741,-100000.0,0.0001499,2]
[403856013,1769603438751,-631.45321653,0.00014999,2]
[403856014,1769603438759,-11230.08306976,0.00015,2]
[403856015,1769603438768,-40878.38369255,0.00015,2]
[403856016,1769603438778,-720.0,0.00015136,2]
[403856017,1769603438787,-159.53,0.000153,2]
[403856018,1769603438796,-275.96331463,0.00015379,2]
[403856019,1769603438806,-716943.76046173,0.000154,2]
[403856063,1769603440610,-460.99335483,0.000154,2]
[403856355,1769603443876,-561.20399237,0.000154,2]
[403856480,1769604006001,374.21,0.0001,2]
[403856481,1769604006651,374.21,0.000104,2]
[403856482,1769604007344,374.21,0.000108,2]
[403856483,1769604027194,200.0,0.000294,120]
[403856559,1769604252852,621.0,0.00010904,2]
[403856607,1769604605852,156.08,0.0001,2]
[403856644,1769604632482,-5000.0,0.00011088,2]
[403856646,1769604632491,-374.21,0.000112,2]
[403856647,1769604632500,-294.58204936,0.000114,2]
[403856651,1769604632537,-68.60521788,0.000114,2]
[403856653,1769604632547,-156.08,0.000114,2]
[403856655,1769604632557,-374.21,0.000116,2]
[403856657,1769604632566,-374.21,0.000121,2]
[403856658,1769604632576,-374.21,0.000125,2]
[403856660,1769604632585,-87.95710046,0.000129,2]
[403857139,1769604638607,-286.25289954,0.000129,2]
[403857141,1769604638617,-156.08,0.000129,2]
[403857143,1769604638626,-300.0,0.00013272,2]
[403857145,1769604638636,-1200.0,0.00013272,2]
[403857147,1769604638645,-500.0,0.00013273,2]
[403857149,1769604638655,-500.0,0.00013273,2]
[403857151,1769604638664,-500.0,0.00013273,2]
[403857153,1769604638674,-339.99051787,0.00013273,2]
[403857155,1769604638685,-160.00948213,0.00013273,2]
[403857157,1769604638694,-500.0,0.00013273,2]
[403857159,1769604638704,-500.0,0.00013273,2]
[403857161,1769604638713,-374.21,0.000133,2]
[403857163,1769604638722,-428.56097534,0.000134,2]
[403857165,1769604638732,-300.0,0.00013673,2]
[403857167,1769604638741,-1000.0,0.00013699,2]
[403857169,1769604638751,-500.0,0.00013699,2]
[403857171,1769604638760,-500.0,0.00013699,2]
[403857172,1769604638773,-500.0,0.00013699,2]
[403857174,1769604638783,-500.0,0.00013699,2]
[403857176,1769604638792,-359.58099392,0.000137,2]
[403857178,1769604638805,-14.62900608,0.000137,2]
[403857181,1769604638814,-1000.0,0.00013821,2]
[403857183,1769604638824,-1000.0,0.00013821,2]
[403857184,1769604638834,-1000.0,0.00013821,2]
[403857186,1769604638844,-1000.0,0.00013821,2]
[403857187,1769604638853,-1000.0,0.00013821,2]
[403857188,1769604638862,-1000.0,0.00013821,2]
[403857189,1769604638871,-631.45321653,0.00014005,2]
[403857190,1769604638881,-500.0,0.00014005,2]
[403857191,1769604638890,-500.0,0.00014005,2]
[403857192,1769604638899,-500.0,0.00014005,2]
[403857193,1769604638907,-500.0,0.00014005,2]
[403857194,1769604638920,-500.0,0.00014005,2]
[403857196,1769604638929,-500.0,0.00014005,2]
[403857198,1769604638938,-10692.73959574,0.00014006,2]
[403857200,1769604638947,-500.0,0.00014096,2]
[403857202,1769604638957,-300.0,0.00014096,2]
[403857204,1769604638966,-300.0,0.00014096,2]
[403857206,1769604638976,-300.0,0.00014096,2]
[403857208,1769604638987,-300.0,0.00014096,2]
[403857210,1769604638996,-300.0,0.00014096,2]
[403857212,1769604639006,-300.0,0.00014096,2]
[403857214,1769604639016,-300.0,0.00014096,2]
[403857216,1769604639026,-300.0,0.00014096,2]
[403857218,1769604639036,-300.0,0.00014096,2]
[403857220,1769604639046,-300.0,0.00014096,2]
[403857222,1769604639056,-300.0,0.00014096,2]
[403857224,1769604639066,-300.0,0.00014096,2]
[403857226,1769604639075,-300.0,0.00014096,2]
[403857228,1769604639084,-300.0,0.00014096,2]
[403857230,1769604639093,-300.0,0.00014096,2]
[403857232,1769604639103,-374.21,0.000141,2]
[403857234,1769604639112,-600.0,0.00014221,2]
[403857236,1769604639121,-526.28781016,0.00014247,2]
[403857238,1769604639129,-500.0,0.00014247,2]
[403857240,1769604639138,-500.68775555,0.00014247,2]
[403857242,1769604639148,-1000.0,0.00014247,2]
[403857244,1769604639157,-8071.28709378,0.00014268,2]
[403857246,1769604639166,-156.08,0.000143,2]
[403857248,1769604639176,-611.71757987,0.00014368,2]
[403857250,1769604639185,-1500.0,0.00014368,2]
[403857252,1769604639195,-1500.0,0.00014368,2]
[403857254,1769604639204,-1500.0,0.00014368,2]
[403857256,1769604639214,-1500.0,0.00014368,2]
[403857258,1769604639223,-1500.0,0.00014368,2]
[403857260,1769604639232,-600.0,0.00014377,2]
[403857262,1769604639242,-6908.32234088,0.000144,2]
[403857264,1769604639251,-351.35435037,0.0001445,2]
[403857266,1769604639260,-1720000.0,0.00014451,2]
[403857267,1769604639270,-1650.89,0.00014451,2]
[403857268,1769604639279,-1650.89,0.00014451,2]
[403857269,1769604639288,-1650.89,0.00014451,2]
[403857270,1769604639298,-1650.89,0.00014451,2]
[403857271,1769604639306,-1650.89,0.00014451,2]
[403857272,1769604639315,-1650.89,0.00014451,2]
[403857273,1769604639324,-1650.89,0.00014451,2]
[403857274,1769604639333,-1650.89,0.00014451,2]
[403857275,1769604639342,-1650.89,0.00014451,2]
[403857276,1769604639351,-1650.89,0.00014451,2]
[403857277,1769604639360,-1650.89,0.00014451,2]
[403857278,1769604639369,-1650.89,0.00014451,2]
[403857279,1769604639377,-1650.89,0.00014451,2]
[403857280,1769604639386,-1650.89,0.00014451,2]
[403857281,1769604639395,-1650.89,0.00014451,2]